bitfinex-derivatives/quotes_BTCF0:USTF0_20251215
["timestamp","ask_amount","ask_price","bid_price","bid_amount"]
[1765776375671,0.09526,89761.0,89760.0,0.124081]
[1765776375867,0.09526,89761.0,89760.0,0.128081]
[1765776376068,0.09526,89761.0,89760.0,0.129081]
[1765776376670,0.09526,89761.0,89760.0,0.125081]
[1765776376870,0.09526,89761.0,89760.0,0.130081]
[1765776377471,0.09526,89761.0,89760.0,0.127081]
[1765776377674,0.09526,89761.0,89760.0,0.130081]
[1765776380274,0.04789,89761.0,89760.0,0.130081]
[1765776380666,0.00016713,89769.0,89768.0,0.09435]
[1765776380667,0.09542713,89769.0,89768.0,0.09435]
[1765776381776,0.09542713,89769.0,89768.0,0.09735]
[1765776381966,0.09542713,89769.0,89768.0,0.09835]
[1765776382275,0.00016713,89769.0,89768.0,0.09835]
[1765776382666,0.00016713,89769.0,89768.0,0.09535]
[1765776382872,0.00016713,89769.0,89768.0,0.09935]
[1765776383575,0.00016713,89769.0,89768.0,0.09835]
[1765776383774,0.00016713,89769.0,89768.0,0.10035]
[1765776384178,0.00016713,89769.0,89768.0,0.09835]
[1765776384366,0.00016713,89769.0,89768.0,0.09635]
[1765776384567,0.09526,89790.0,89789.0,0.09435]
[1765776385768,0.09926,89790.0,89789.0,0.09435]
[1765776386877,0.10326,89790.0,89789.0,0.09435]
[1765776415593,0.05589,89790.0,89789.0,0.09435]
[1765776416288,0.10706,89790.0,89789.0,0.09435]
[1765776422895,0.0111382,89783.0,89781.0,0.04852713]
[1765776423196,0.09677,89765.0,89764.0,0.08822377]
[1765776423388,0.09677,89764.0,89763.0,0.0595006]
[1765776424694,0.12558,89756.0,89755.0,0.04852713]
[1765776424884,0.12558,89756.0,89755.0,0.09570713]
[1765776425889,0.12558,89756.0,89755.0,0.10662997]
[1765776426095,0.09677,89756.0,89755.0,0.10662997]
[1765776426590,0.09677,89766.0,89765.0,0.1066804]
[1765776427784,0.09677,89766.0,89765.0,0.1086804]
[1765776428602,0.09677,89766.0,89765.0,0.1126804]
[1765776430596,0.09677,89766.0,89765.0,0.1126804]
[1765776436904,0.09693713,89772.0,89771.0,0.1066796]
[1765776437999,0.09693713,89772.0,89771.0,0.1096796]
[1765776439304,0.12574713,89772.0,89771.0,0.1096796]
[1765776439910,0.12574713,89772.0,89771.0,0.1106796]
[1765776443304,0.09693713,89772.0,89771.0,0.1106796]
[1765776443908,0.00016713,89772.0,89771.0,0.1106796]
[1765776446809,0.12722,89796.0,89795.0,0.1094667]
[1765776448607,0.13222,89796.0,89795.0,0.12039804]
[1765776449213,0.13622,89796.0,89795.0,0.1094667]
[1765776450110,0.12873,89792.0,89791.0,0.1094671]
[1765776450414,0.12873,89792.0,89791.0,0.0111371]
[1765776450614,0.12873,89792.0,89791.0,0.0585871]
[1765776450816,0.12873,89792.0,89791.0,0.1094671]
[1765776451816,0.13273,89792.0,89791.0,0.1094671]
[1765776452418,0.13673,89792.0,89791.0,0.1094671]
[1765776459227,0.10641,89792.0,89791.0,0.1094671]
[1765776475328,0.16649427,89792.0,89791.0,0.1094671]
[1765776475523,0.18695427,89792.0,89791.0,0.1094671]
[1765776475729,0.12687,89792.0,89791.0,0.0111371]
[1765776476441,0.12687,89792.0,89791.0,0.0571971]
[1765776476641,0.12687,89792.0,89791.0,0.1064271]
[1765776479850,0.10641,89792.0,89791.0,0.1064271]
[1765776491946,0.16656699,89792.0,89791.0,0.1064271]
[1765776499258,0.16656699,89792.0,89791.0,0.0571971]
[1765776499656,0.16656699,89792.0,89791.0,0.1058471]
[1765776511466,0.10641,89792.0,89791.0,0.1058471]
[1765776529698,0.05866,89792.0,89791.0,0.1058471]
[1765776530191,0.10521,89792.0,89791.0,0.1058471]
[1765776540102,0.06015568,89795.0,89794.0,0.0111368]
[1765776540303,0.09897131,89800.0,89799.0,0.1146062]
[1765776540500,0.05150131,89800.0,89799.0,0.1146062]
[1765776540805,0.09897131,89800.0,89799.0,0.0986162]
[1765776542499,0.10097131,89800.0,89799.0,0.0986162]
[1765776543198,0.09897131,89800.0,89799.0,0.0986162]
[1765776543408,0.09897131,89800.0,89799.0,0.0996162]
[1765776544109,0.09897131,89800.0,89799.0,0.0121362]
[1765776544412,0.09897131,89800.0,89799.0,0.0996162]
[1765776544601,0.09897131,89800.0,89799.0,0.0121362]
[1765776549698,0.15912699,89800.0,89799.0,0.0121362]
[1765776551102,0.11165699,89800.0,89799.0,0.0996162]
[1765776551304,0.09897131,89800.0,89799.0,0.0996162]
[1765776555820,0.15212699,89800.0,89799.0,0.0996162]
[1765776556210,0.15212699,89800.0,89799.0,0.0558462]
[1765776556409,0.15212699,89800.0,89799.0,0.0121362]
[1765776558416,0.15212699,89800.0,89799.0,0.001]
[1765776558619,0.09197131,89800.0,89799.0,0.001]
[1765776560619,0.09113,89788.0,89787.0,0.00016713]
[1765776560813,0.09113,89785.0,89784.0,0.054848]
[1765776561718,0.09113,89785.0,89784.0,0.098618]
[1765776562118,0.09113,89785.0,89784.0,0.102618]
[1765776563127,0.09113,89785.0,89784.0,0.107618]
[1765776563924,0.09113,89785.0,89784.0,0.004]
[1765776564125,0.09113,89785.0,89784.0,0.007]
[1765776565223,0.09113,89785.0,89784.0,0.005]
[1765776565527,0.09113,89777.0,89776.0,0.01130603]
[1765776565729,0.09113,89777.0,89776.0,0.05501603]
[1765776565930,0.09113,89777.0,89776.0,0.09878603]
[1765776567220,0.09113,89777.0,89776.0,0.10378603]
[1765776567420,0.09113,89777.0,89776.0,0.10578603]
[1765776569122,0.09113,89777.0,89776.0,0.10378603]
[1765776570217,0.09113,89777.0,89776.0,0.00516713]
[1765776571024,0.09113,89777.0,89776.0,0.04747713]
[1765776571429,0.09113,89777.0,89776.0,0.04547713]
[1765776571626,0.09113,89777.0,89776.0,0.00316713]
[1765776571827,0.09113,89777.0,89776.0,0.00016713]
[1765776572127,0.02266,89775.0,89764.0,0.0910604]
[1765776572317,0.07853,89765.0,89764.0,0.0910604]
[1765776573130,0.07853,89765.0,89764.0,0.07992]
[1765776573432,0.07853,89765.0,89764.0,0.0950605]
[1765776573629,0.07853,89765.0,89764.0,0.08392]
[1765776573928,0.0896704,89765.0,89764.0,0.007]
[1765776575017,0.0896704,89765.0,89764.0,0.006]
[1765776575217,0.0896714,89757.0,89756.0,0.08008713]
[1765776575519,0.0896714,89757.0,89756.0,0.01271705]
[1765776575723,0.0896714,89757.0,89756.0,0.05438705]
[1765776576326,0.0896714,89757.0,89756.0,0.05938705]
[1765776576633,0.0896714,89757.0,89756.0,0.06338705]
[1765776582932,0.07853,89757.0,89756.0,0.06338705]
[1765776584332,0.0896714,89757.0,89756.0,0.06338705]
[1765776591540,0.1123314,89757.0,89756.0,0.06338705]
[1765776600246,0.1123314,89757.0,89756.0,0.009]
[1765776600747,0.17238703,89757.0,89756.0,0.009]
[1765776601454,0.1123314,89757.0,89756.0,0.0082337]
[1765776620974,0.1123314,89757.0,89756.0,0.0807537]
[1765776622881,0.06991,89764.0,89763.0,0.07252]
[1765776623073,0.03492,89766.0,89765.0,0.07252]
[1765776623265,0.06991,89766.0,89765.0,0.07252]
[1765776623461,0.09096,89766.0,89765.0,0.07252]
[1765776623667,0.09096,89766.0,89756.0,0.0435437]
[1765776623668,0.06991,89757.0,89756.0,0.0435437]
[1765776623861,0.06991,89757.0,89756.0,0.0082337]
[1765776624280,0.06991,89757.0,89756.0,0.0395437]
[1765776624577,0.06991,89757.0,89756.0,0.0767537]
[1765776625167,0.06991,89757.0,89756.0,0.0797537]
[1765776625466,0.13003627,89757.0,89756.0,0.0797537]
[1765776625964,0.13003627,89757.0,89756.0,0.07552]
[1765776626369,0.06991,89757.0,89756.0,0.07552]
[1765776626976,0.06991,89757.0,89756.0,0.07952]
[1765776628572,0.130053,89757.0,89756.0,0.07952]
[1765776629283,0.06991,89757.0,89756.0,0.07952]
[1765776630073,0.06991,89757.0,89756.0,0.04231]
[1765776630886,0.06991,89757.0,89756.0,0.07779]
[1765776639680,0.06991,89757.0,89756.0,0.04231]
[1765776640175,0.06991,89757.0,89756.0,0.07779]
[1765776640986,0.13005557,89757.0,89756.0,0.07779]
[1765776641871,0.06991,89757.0,89756.0,0.07779]
[1765776644788,0.0810514,89757.0,89756.0,0.07779]
[1765776645883,0.14119697,89757.0,89756.0,0.007]
[1765776646078,0.0763724,89749.0,89748.0,0.00016713]
[1765776646280,0.0763736,89739.0,89738.0,0.07227872]
[1765776647077,0.06523,89739.0,89738.0,0.07227872]
[1765776648192,0.06523,89744.0,89743.0,0.07005]
[1765776649289,0.0763736,89739.0,89738.0,0.01322872]
[1765776649583,0.0763746,89731.0,89711.0,0.011147]
[1765776649792,0.02061,89735.0,89711.0,0.011147]
[1765776649793,0.0763757,89722.0,89721.0,0.0701706]
[1765776651782,0.0763757,89722.0,89721.0,0.0771706]
[1765776651982,0.0763757,89722.0,89721.0,0.0851706]
[1765776653190,0.0763757,89722.0,89721.0,0.0151206]
[1765776654294,0.0763757,89722.0,89721.0,0.0071206]
[1765776654493,0.0853757,89722.0,89721.0,0.0001206]
[1765776654699,0.0763767,89714.0,89713.0,0.03473713]
[1765776654900,0.0763767,89714.0,89713.0,0.07021713]
[1765776655697,0.07649139,89714.0,89713.0,0.07021713]
[1765776656000,0.08349139,89714.0,89713.0,0.07021713]
[1765776657190,0.09049139,89714.0,89713.0,0.07021713]
[1765776659499,0.08749139,89714.0,89713.0,0.07021713]
[1765776660412,0.08349139,89714.0,89713.0,0.07021713]
[1765776660790,0.07234469,89714.0,89713.0,0.07021713]
[1765776660991,0.06934469,89714.0,89713.0,0.07021713]
[1765776661192,0.06634469,89714.0,89713.0,0.07121713]
[1765776661589,0.06534469,89714.0,89713.0,0.00116713]
[1765776661903,0.0663,89699.0,89698.0,0.06756972]
[1765776664597,0.0663,89699.0,89698.0,0.06956972]
[1765776664804,0.0663,89699.0,89698.0,0.07056972]
[1765776665603,0.0663,89699.0,89698.0,0.06956972]
[1765776680814,0.06640933,89699.0,89698.0,0.06956972]
[1765776687509,0.06640933,89699.0,89698.0,0.06585972]
[1765776687510,0.12654419,89699.0,89698.0,0.06585972]
[1765776687714,0.06640933,89699.0,89698.0,0.06585972]
[1765776689428,0.06640933,89699.0,89698.0,0.06570972]
[1765776692626,0.06640933,89699.0,89698.0,0.00422972]
[1765776692627,0.12654419,89699.0,89698.0,0.00422972]
[1765776693516,0.06640933,89699.0,89698.0,0.00422972]
[1765776696525,0.06640933,89699.0,89698.0,0.03483972]
[1765776699140,0.06640933,89699.0,89698.0,0.00422972]
[1765776699632,0.0745996,89691.0,89690.0,0.00011173]
[1765776699832,0.0746007,89682.0,89681.0,0.06148]
[1765776700130,0.08294,89672.0,89671.0,0.029754]
[1765776700330,0.06345,89663.0,89662.0,0.06160378]
[1765776701231,0.00016723,89671.0,89670.0,0.0891022]
[1765776702027,0.03158723,89671.0,89670.0,0.0891022]
[1765776702231,0.06361723,89671.0,89670.0,0.06148]
[1765776702433,0.06361723,89671.0,89670.0,0.06348]
[1765776702626,0.06361723,89671.0,89670.0,0.06648]
[1765776706231,0.00016723,89671.0,89670.0,0.08281]
[1765776706523,0.0111493,89694.0,89670.0,0.08281]
[1765776706524,0.28555707,89700.0,89699.0,0.06148]
[1765776706724,0.14307119,89700.0,89699.0,0.06148]
[1765776706938,0.08294,89700.0,89699.0,0.06148]
[1765776707236,0.08842775,89700.0,89699.0,0.06148]
[1765776707434,0.08294,89700.0,89699.0,0.06148]
[1765776708028,0.09994,89700.0,89699.0,0.06248]
[1765776708839,0.09094,89700.0,89699.0,0.06148]
[1765776710938,0.09494,89700.0,89699.0,0.06148]
[1765776711333,0.08794,89700.0,89699.0,0.06148]
[1765776711542,0.08394,89700.0,89699.0,0.06148]
[1765776713946,0.03242,89700.0,89699.0,0.06148]
[1765776714246,0.06445,89700.0,89699.0,0.06148]
[1765776714844,0.06345,89700.0,89699.0,0.06148]
[1765776715142,0.06445,89700.0,89699.0,0.06148]
[1765776715645,0.03242,89700.0,89699.0,0.06148]
[1765776715942,0.001,89700.0,89699.0,0.06148]
[1765776717439,0.06313,89700.0,89699.0,0.06148]
[1765776717642,0.06313,89700.0,89699.0,0.0726286]
[1765776717844,0.06213,89700.0,89699.0,0.0746286]
[1765776718648,0.06213,89700.0,89699.0,0.0726286]
[1765776718849,0.06213,89700.0,89699.0,0.0746286]
[1765776720146,0.0808,89700.0,89699.0,0.06348]
[1765776720346,0.0808,89700.0,89699.0,0.0746286]
[1765776721245,0.0808,89700.0,89699.0,0.0736286]
[1765776721747,0.0818,89700.0,89699.0,0.0736286]
[1765776723056,0.0818,89700.0,89699.0,0.0726286]
[1765776723252,0.0818,89700.0,89699.0,0.0736286]
[1765776724238,0.06313,89700.0,89699.0,0.0736286]
[1765776728249,0.001,89700.0,89699.0,0.0736286]
[1765776731852,0.06199,89700.0,89699.0,0.0427586]
[1765776732157,0.08066,89700.0,89699.0,0.0722486]
[1765776732550,0.06199,89700.0,89699.0,0.0722486]
[1765776733248,0.001,89700.0,89699.0,0.0722486]
[1765776733646,0.03128,89700.0,89699.0,0.0722486]
[1765776734052,0.001,89700.0,89699.0,0.0722486]
[1765776739452,0.06199,89700.0,89699.0,0.0722486]
[1765776739759,0.08066,89700.0,89699.0,0.0722486]
[1765776740356,0.08066,89700.0,89699.0,0.001]
[1765776741853,0.08066,89700.0,89699.0,0.03182]
[1765776742247,0.08066,89700.0,89699.0,0.001]
[1765776744271,0.08066,89700.0,89699.0,0.03182]
[1765776744667,0.08066,89700.0,89699.0,0.001]
[1765776744862,0.08066,89700.0,89699.0,0.03182]
[1765776745065,0.08066,89700.0,89699.0,0.06131]
[1765776746664,0.08066,89700.0,89699.0,0.001]
[1765776750971,0.06039,89692.0,89691.0,0.00016723]
[1765776751670,0.06039,89692.0,89691.0,0.05972723]
[1765776752283,0.06039,89692.0,89691.0,0.06172723]
[1765776752466,0.06039,89692.0,89691.0,0.06272723]
[1765776753281,0.06039,89692.0,89691.0,0.06072723]
[1765776753579,0.06039,89692.0,89691.0,0.06272723]
[1765776754381,0.03031,89692.0,89691.0,0.06172723]
[1765776754577,0.05797,89697.0,89696.0,0.06239]
[1765776754776,0.02875,89697.0,89696.0,0.0735389]
[1765776754975,0.0888406,89702.0,89701.0,0.06239]
[1765776755177,0.08883278,89702.0,89701.0,0.06239]
[1765776755473,0.00016723,89708.0,89702.0,0.0735382]
[1765776755474,0.06008278,89703.0,89702.0,0.0735382]
[1765776755673,0.11805278,89703.0,89702.0,0.0735382]
[1765776755880,0.05797,89703.0,89702.0,0.0735382]
[1765776756071,0.05797,89707.0,89706.0,0.0735377]
[1765776756271,0.02891723,89708.0,89707.0,0.06239]
[1765776758582,0.02891723,89708.0,89707.0,0.06339]
[1765776761883,0.00016723,89708.0,89707.0,0.06339]
[1765776762069,0.02891723,89708.0,89707.0,0.06339]
[1765776765283,0.05797,89692.0,89691.0,0.00016723]
[1765776766684,0.05797,89692.0,89691.0,0.03143723]
[1765776767089,0.05797,89692.0,89691.0,0.00016723]
[1765776767277,0.11805278,89692.0,89691.0,0.00016723]
[1765776767477,0.05797,89692.0,89691.0,0.00416723]
[1765776767675,0.05897,89692.0,89691.0,0.00416723]
[1765776768273,0.05897,89692.0,89691.0,0.00016723]
[1765776768681,0.05997,89692.0,89691.0,0.00016723]
[1765776769081,0.06097,89692.0,89691.0,0.00016723]
[1765776770279,0.05797,89677.0,89676.0,0.0735414]
[1765776771485,0.05797,89677.0,89676.0,0.0765414]
[1765776774300,0.05813723,89685.0,89684.0,0.06239]
[1765776776587,0.07588723,89685.0,89684.0,0.06239]
[1765776777195,0.07588723,89685.0,89684.0,0.06339]
[1765776783200,0.00016723,89685.0,89684.0,0.06339]
[1765776786706,0.20673139,89700.0,89699.0,0.05815]
[1765776786904,0.0754,89700.0,89699.0,0.05815]
[1765776788198,0.0824,89700.0,89699.0,0.05815]
[1765776788798,0.0794,89700.0,89699.0,0.05815]
[1765776789605,0.0894,89700.0,89699.0,0.05915]
[1765776790209,0.0894,89700.0,89699.0,0.05815]
[1765776790506,0.0834,89700.0,89699.0,0.05815]
[1765776792504,0.0804,89700.0,89699.0,0.05815]
[1765776793008,0.0794,89700.0,89699.0,0.05815]
[1765776793310,0.0764,89700.0,89699.0,0.05815]
[1765776794403,0.13643153,89700.0,89699.0,0.05815]
[1765776795310,0.0764,89700.0,89699.0,0.05815]
[1765776795506,0.11893625,89700.0,89699.0,0.05815]
[1765776795706,0.05882,89700.0,89699.0,0.05815]
[1765776795906,0.11893625,89700.0,89699.0,0.05815]
[1765776796308,0.05882,89700.0,89699.0,0.05815]
[1765776797713,0.05782,89700.0,89699.0,0.05815]
[1765776797920,0.05882,89700.0,89699.0,0.05815]
[1765776812241,0.11893625,89700.0,89699.0,0.05815]
[1765776813332,0.05882,89700.0,89699.0,0.05815]
[1765776815938,0.07705,89700.0,89699.0,0.05815]
[1765776831770,0.001,89700.0,89699.0,0.05815]
[1765776831970,0.03099,89700.0,89699.0,0.05815]
[1765776832268,0.05898,89700.0,89699.0,0.05815]
[1765776841975,0.07545,89700.0,89699.0,0.05815]
[1765776866387,0.07545,89700.0,89699.0,0.05706]
[1765776867390,0.001,89700.0,89699.0,0.05706]
[1765776867695,0.07567,89700.0,89699.0,0.05706]
[1765776868488,0.07467,89700.0,89699.0,0.05806]
[1765776869094,0.07467,89700.0,89699.0,0.06006]
[1765776869694,0.07467,89700.0,89699.0,0.05806]
[1765776869992,0.07467,89700.0,89699.0,0.05906]
[1765776870191,0.07467,89700.0,89699.0,0.06006]
[1765776873096,0.05761,89700.0,89699.0,0.06006]
[1765776877195,0.05761,89700.0,89699.0,0.05906]
[1765776877499,0.02788,89700.0,89699.0,0.06006]
[1765776878004,0.02788,89700.0,89699.0,0.05806]
[1765776878203,0.05707,89700.0,89699.0,0.06006]
[1765776880502,0.05707,89700.0,89691.0,0.00016723]
[1765776880503,0.05791,89692.0,89691.0,0.00016723]
[1765776880707,0.4164,89700.0,89671.0,0.02873]
[1765776880708,0.07431,89672.0,89671.0,0.02873]
[1765776880898,0.07431,89672.0,89671.0,0.0693621]
[1765776881203,0.07431,89672.0,89671.0,0.05821]
[1765776881503,0.09832402,89672.0,89671.0,0.05821]
[1765776883203,0.05791,89663.0,89662.0,0.05833378]
[1765776883405,0.08192402,89663.0,89662.0,0.05833378]
[1765776883796,0.0828092,89663.0,89662.0,0.05833378]
[1765776883994,0.0828092,89663.0,89662.0,0.00012378]
[1765776884193,0.07431,89648.0,89647.0,0.069365]
[1765776884394,0.0992092,89648.0,89647.0,0.069365]
[1765776885201,0.09933298,89648.0,89647.0,0.069365]
[1765776885397,0.07443378,89648.0,89647.0,0.069365]
[1765776885799,0.07443378,89648.0,89647.0,0.075365]
[1765776886397,0.07443378,89648.0,89647.0,0.080365]
[1765776888010,0.05803378,89648.0,89647.0,0.080365]
[1765776888601,0.05803378,89648.0,89647.0,0.06921]
[1765776890812,0.05803378,89648.0,89647.0,0.011]
[1765776891304,0.05803378,89648.0,89647.0,0.03973]
[1765776891505,0.05803378,89648.0,89647.0,0.011]
[1765776892005,0.05803378,89648.0,89647.0,0.03873]
[1765776892912,0.05803378,89648.0,89647.0,0.03773]
[1765776893606,0.05803378,89648.0,89647.0,0.03573]
[1765776894112,0.05803378,89648.0,89647.0,0.06521]
[1765776895899,0.06918868,89648.0,89647.0,0.06521]
[1765776896512,0.08558868,89648.0,89647.0,0.06521]
[1765776897717,0.07443378,89648.0,89647.0,0.06521]
[1765776902010,0.07443378,89648.0,89647.0,0.007]
[1765776902216,0.05689,89631.0,89630.0,0.0682571]
[1765776903615,0.05689,89631.0,89630.0,0.0732571]
[1765776903816,0.05699582,89631.0,89630.0,0.0661]
[1765776907919,0.00010582,89631.0,89630.0,0.08115]
[1765776910528,0.07072,89644.0,89643.0,0.0682555]
[1765776911016,0.05689,89644.0,89643.0,0.0682555]
[1765776911213,0.14897744,89660.0,89634.0,0.13131744]
[1765776911214,0.11707635,89653.0,89652.0,0.0571]
[1765776911419,0.05689,89653.0,89652.0,0.0571]
[1765776911724,0.02911,89653.0,89652.0,0.0571]
[1765776911927,0.05705732,89656.0,89655.0,0.0571]
[1765776913125,0.00016732,89656.0,89655.0,0.07219]
[1765776913428,0.00116732,89656.0,89655.0,0.07219]
[1765776914821,0.00116732,89656.0,89655.0,0.07419]
[1765776915533,0.00016732,89656.0,89655.0,0.07519]
[1765776916121,0.20595936,89670.0,89669.0,0.0571]
[1765776916431,0.07455,89670.0,89669.0,0.0571]
[1765776917337,0.07655,89670.0,89669.0,0.0571]
[1765776922236,0.002,89670.0,89669.0,0.0571]
[1765776922434,0.02670343,89670.0,89669.0,0.0571]
[1765776922729,0.05581343,89670.0,89669.0,0.0571]
[1765776922934,0.08359343,89670.0,89669.0,0.0571]
[1765776923926,0.08159343,89670.0,89669.0,0.0591]
[1765776924732,0.02470343,89670.0,89669.0,0.0591]
[1765776925339,0.02470343,89670.0,89669.0,0.0571]
[1765776925527,0.02470343,89670.0,89669.0,0.0581]
[1765776926129,0.05705732,89678.0,89677.0,0.0682513]
[1765776926438,0.08175177,89678.0,89677.0,0.0682513]
[1765776927852,0.08275177,89678.0,89677.0,0.0682513]
[1765776928841,0.08275177,89678.0,89677.0,0.0692513]
[1765776929836,0.08275177,89678.0,89677.0,0.0682513]
[1765776930440,0.08175177,89678.0,89677.0,0.0682513]
[1765776930643,0.08275177,89678.0,89677.0,0.0682513]
[1765776935348,0.08275177,89678.0,89677.0,0.0692513]
[1765776936050,0.08275177,89678.0,89677.0,0.0682513]
[1765776937549,0.08175177,89678.0,89677.0,0.0682513]
[1765776937751,0.08275177,89678.0,89677.0,0.0682513]
[1765776939254,0.08175177,89678.0,89677.0,0.0682513]
[1765776939456,0.08275177,89678.0,89677.0,0.0682513]
[1765776939954,0.08175177,89678.0,89677.0,0.0682513]
[1765776940148,0.08275177,89678.0,89677.0,0.0682513]
[1765776946049,0.08175177,89678.0,89677.0,0.0682513]
[1765776946363,0.08275177,89678.0,89677.0,0.0682513]
[1765776949967,0.08175177,89678.0,89677.0,0.0682513]
[1765776950266,0.08275177,89678.0,89677.0,0.0682513]
[1765776959166,0.08175177,89678.0,89677.0,0.0682513]
[1765776959371,0.08275177,89678.0,89677.0,0.0682513]
[1765776959773,0.08175177,89678.0,89677.0,0.0682513]
[1765776959974,0.08275177,89678.0,89677.0,0.0682513]
[1765776969179,0.08175177,89678.0,89677.0,0.0682513]
[1765776969379,0.08275177,89678.0,89677.0,0.0682513]
[1765776979874,0.08175177,89678.0,89677.0,0.0682513]
[1765776980075,0.08275177,89678.0,89677.0,0.0682513]
[1765776980483,0.08275177,89678.0,89677.0,1.5682513]
[1765776981585,0.09961177,89678.0,89677.0,1.5682513]
[1765776995903,0.08275177,89678.0,89677.0,1.5682513]
[1765777004112,0.08268335,89678.0,89677.0,1.5682513]
[1765777007210,0.09916335,89678.0,89677.0,1.5682513]
[1765777007414,0.09916335,89678.0,89666.0,0.01481]
[1765777007415,0.07005,89662.0,89661.0,0.06812062]
[1765777007603,0.08110603,89662.0,89661.0,0.06812062]
[1765777008801,0.08110603,89662.0,89661.0,0.07012062]
[1765777009324,0.08110603,89662.0,89661.0,0.07312062]
[1765777009815,0.08110603,89662.0,89661.0,0.07112062]
[1765777010017,0.08110603,89662.0,89661.0,0.06812062]
[1765777010315,0.08110603,89662.0,89661.0,0.06912062]
[1765777011404,0.08110603,89662.0,89661.0,0.04084062]
[1765777011605,0.08110603,89662.0,89661.0,0.00116732]
[1765777011606,0.08210603,89662.0,89661.0,0.00116732]
[1765777012620,0.08210603,89662.0,89661.0,0.00016732]
[1765777013320,0.08110603,89662.0,89661.0,0.00016732]
[1765777013515,0.08510603,89662.0,89661.0,0.00016732]
[1765777014208,0.05648,89651.0,89650.0,0.0568]
[1765777014414,0.08110603,89651.0,89650.0,0.0568]
[1765777015019,0.05648,89647.0,89646.0,0.0568]
[1765777015317,0.08110603,89647.0,89646.0,0.0568]
[1765777015509,0.08110603,89647.0,89646.0,0.0679552]
[1765777016508,0.08110603,89647.0,89646.0,0.0689552]
[1765777017618,0.08110603,89647.0,89646.0,0.0578]
[1765777019513,0.01789,89644.0,89615.0,0.09063647]
[1765777019708,0.18760706,89630.0,89629.0,0.05907]
[1765777019910,0.05621,89630.0,89629.0,0.05907]
[1765777020515,0.02832,89630.0,89629.0,0.05907]
[1765777020910,0.05621,89630.0,89629.0,0.05907]
[1765777021912,0.05621,89630.0,89629.0,0.06107]
[1765777022811,0.05621,89630.0,89629.0,0.06407]
[1765777023909,0.05621,89636.0,89635.0,0.05907]
[1765777025125,0.05621,89636.0,89635.0,0.06007]
[1765777025422,0.05621,89636.0,89635.0,0.0712265]
[1765777026326,0.0741,89644.0,89643.0,0.0702255]
[1765777026513,0.09856357,89644.0,89643.0,0.0702255]
[1765777027020,0.09856357,89644.0,89643.0,0.05907]
[1765777027524,0.09856357,89644.0,89643.0,0.0293]
[1765777027716,0.09856357,89644.0,89643.0,0.001]
[1765777027915,0.09856357,89644.0,89643.0,0.0303]
[1765777028410,0.09856357,89644.0,89643.0,0.001]
[1765777030619,0.05775,89626.0,89625.0,0.0692277]
[1765777031730,0.05775,89626.0,89625.0,0.0722277]
[1765777032730,0.05775,89626.0,89625.0,0.0732277]
[1765777032926,0.05975,89626.0,89625.0,0.0732277]
[1765777033529,0.06075,89626.0,89625.0,0.0692277]
[1765777034927,0.05875,89626.0,89625.0,0.0692277]
[1765777035132,0.05975,89626.0,89625.0,0.0692277]
[1765777036330,0.05875,89626.0,89625.0,0.0692277]
[1765777037321,0.08341354,89626.0,89625.0,0.0692277]
[1765777051336,0.02566354,89626.0,89625.0,0.0842477]
[1765777053942,0.02566354,89626.0,89625.0,0.0842477]
[1765777054643,0.001,89626.0,89625.0,0.0842477]
[1765777055145,0.00016732,89634.0,89633.0,0.0672468]
[1765777055340,0.02491897,89634.0,89633.0,0.0672468]
[1765777056454,0.02691897,89634.0,89633.0,0.0672468]
[1765777056744,0.02791897,89634.0,89633.0,0.0672468]
[1765777057442,0.00316732,89634.0,89633.0,0.0672468]
[1765777079549,0.0572097,89634.0,89633.0,0.0672468]
[1765777079750,0.0870297,89634.0,89633.0,0.0672468]
[1765777080765,0.0278997,89634.0,89633.0,0.0672468]
[1765777082064,0.00316732,89634.0,89633.0,0.0672468]
[1765777082265,0.02791508,89634.0,89633.0,0.0672468]
[1765777084160,0.05722508,89634.0,89633.0,0.0672468]
[1765777084371,0.08704508,89634.0,89633.0,0.0672468]
[1765777084759,0.05722508,89634.0,89633.0,0.0672468]
[1765777086075,0.08704508,89634.0,89633.0,0.0672468]
[1765777086678,0.10428508,89634.0,89633.0,0.0672468]
[1765777087667,0.08704508,89634.0,89633.0,0.0672468]
[1765777088058,0.10428508,89634.0,89633.0,0.0672468]
[1765777088670,0.08704508,89634.0,89633.0,0.0672468]
[1765777091670,0.08704508,89634.0,89633.0,1.5672468]
[1765777095771,0.08604508,89634.0,89633.0,1.5682468]
[1765777096073,0.08404508,89634.0,89633.0,1.5682468]
[1765777109889,0.02491508,89634.0,89633.0,1.5682468]
[1765777111084,0.02491508,89634.0,89633.0,2.2651668]
[1765777118681,0.05298508,89634.0,89633.0,2.2651668]
[1765777119095,0.02491508,89634.0,89633.0,2.2651668]
[1765777121590,0.05298508,89634.0,89633.0,2.2651668]
[1765777121787,0.08103508,89634.0,89633.0,2.2651668]
[1765777122086,0.08103508,89634.0,89633.0,2.25401]
[1765777123887,0.02491508,89634.0,89633.0,2.25401]
[1765777124087,0.05298508,89634.0,89633.0,2.25401]
[1765777124481,0.02491508,89634.0,89633.0,2.25401]
[1765777140902,0.05354508,89634.0,89633.0,2.25401]
[1765777141102,0.02491508,89634.0,89633.0,2.25401]
[1765777145813,0.05354508,89634.0,89633.0,2.25401]
[1765777146394,0.02491508,89634.0,89633.0,2.25401]
[1765777154720,0.10072508,89634.0,89633.0,2.25401]
[1765777154918,0.08319508,89634.0,89633.0,2.25401]
[1765777155215,0.02491508,89634.0,89633.0,2.25401]
[1765777163028,0.00016732,89634.0,89633.0,2.25401]
[1765777163217,0.0252795,89634.0,89633.0,2.25401]
[1765777179937,0.05988727,89657.0,89649.0,0.05771]
[1765777180132,0.0284667,89657.0,89656.0,0.0688639]
[1765777180330,0.0559167,89657.0,89656.0,0.3084239]
[1765777181033,0.0629167,89657.0,89656.0,0.3084239]
[1765777181239,0.0629167,89657.0,89649.0,0.03019]
[1765777181240,0.05634,89650.0,89649.0,0.03019]
[1765777181428,0.05634,89650.0,89649.0,0.0698648]
[1765777181740,0.07634727,89655.0,89654.0,0.0688642]
[1765777181741,0.05634,89655.0,89654.0,0.0688642]
[1765777182230,0.0728,89655.0,89654.0,0.0688642]
[1765777182929,0.0808,89655.0,89654.0,0.0698642]
[1765777184523,0.0898,89655.0,89654.0,0.0708642]